bitfinex/quotes_SOLUSD_20241205
["timestamp","ask_amount","ask_price","bid_price","bid_amount"]
[1733414012170,1723.32917219,239.06,239.04,29.47725887]
[1733414012779,1723.32917219,239.06,239.02,29.47725887]
[1733414013088,1723.32917219,239.06,239.0,29.47725887]
[1733414013249,1723.32917219,239.06,238.98,29.47725887]
[1733414013451,29.47725887,239.05,238.98,29.47725887]
[1733414014768,29.47725887,239.05,238.96,29.47725887]
[1733414014975,29.47725887,239.03,238.96,29.47725887]
[1733414015570,29.47725887,239.03,238.94,29.47725887]
[1733414015756,29.47725887,239.01,238.94,29.47725887]
[1733414016073,29.47725887,238.95,238.87,29.47725887]
[1733414016282,29.47725887,238.92,238.85,29.47725887]
[1733414017191,29.47725887,238.98,238.91,29.47725887]
[1733414017486,29.47725887,239.05,238.97,29.47725887]
[1733414018088,29.47725887,239.05,238.95,29.47725887]
[1733414018580,29.47725887,239.03,238.95,29.47725887]
[1733414018990,29.47725887,239.03,238.83,0.62772323]
[1733414018991,29.47725887,238.97,238.89,29.47725887]
[1733414019492,29.47725887,239.01,238.93,29.47725887]
[1733414019794,23.776884,239.05,238.83,25.68191996]
[1733414019959,29.47725887,239.0,238.91,29.47725887]
[1733414020904,1752.80643106,239.06,238.98,29.47725887]
[1733414021091,1723.32917219,239.06,239.0,29.47725887]
[1733414021309,1723.32917219,239.06,239.02,29.47725887]
[1733414021458,1723.32917219,239.06,238.99,29.47725887]
[1733414021664,1752.80643106,239.06,238.97,29.47725887]
[1733414022278,1752.80643106,239.06,238.99,29.47725887]
[1733414022479,1723.32917219,239.06,239.0,29.47725887]
[1733414022680,1723.32917219,239.06,238.98,29.47725887]
[1733414023581,1752.80643106,239.06,238.98,29.47725887]
[1733414023778,1752.80643106,239.06,238.96,29.47725887]
[1733414024703,29.47725887,239.02,238.92,29.47725887]
[1733414025003,29.47725887,239.0,238.92,29.47725887]
[1733414025498,29.47725887,238.98,238.9,29.47725887]
[1733414025698,29.47725887,238.96,238.88,29.47725887]
[1733414025887,29.47725887,238.94,238.84,29.47725887]
[1733414026086,29.47725887,238.92,238.84,29.47725887]
[1733414026494,29.47725887,238.9,238.82,29.47725887]
[1733414026676,29.47725887,238.88,238.8,29.47725887]
[1733414026875,29.47725887,239.04,238.66,1.2296]
[1733414026876,29.47725887,238.86,238.78,29.47725887]
[1733414027594,29.47725887,238.84,238.76,29.47725887]
[1733414027807,29.47725887,238.8,238.66,6.2194]
[1733414028003,29.47725887,238.78,238.7,29.47725887]
[1733414028605,29.47725887,238.8,238.74,29.47725887]
[1733414028802,23.776884,238.85,238.72,29.47725887]
[1733414029007,29.47725887,238.81,238.72,29.47725887]
[1733414029302,29.47725887,238.83,238.76,29.47725887]
[1733414029496,29.47725887,238.85,238.76,29.47725887]
[1733414030597,29.47725887,238.83,238.76,29.47725887]
[1733414030906,29.47725887,238.81,238.72,29.47725887]
[1733414031309,29.47725887,238.79,238.72,29.47725887]
[1733414031507,29.47725887,238.79,238.7,29.47725887]
[1733414031681,29.47725887,238.77,238.7,29.47725887]
[1733414033294,29.47725887,238.75,238.66,341.47725887]
[1733414033497,29.47725887,238.71,238.64,29.47725887]
[1733414033814,29.47725887,238.73,238.66,29.47725887]
[1733414034985,29.47725887,238.73,238.64,29.47725887]
[1733414036214,29.47725887,238.73,238.58,1.70398868]
[1733414036215,29.47725887,238.69,238.61,29.47725887]
[1733414036505,29.47725887,238.69,238.61,341.47725887]
[1733414038897,29.47725887,238.74,238.66,29.47725887]
[1733414039083,29.47725887,238.7,238.61,29.47725887]
[1733414039992,29.47725887,238.7,238.63,29.47725887]
[1733414040300,31.08025887,238.8,238.65,29.47725887]
[1733414040301,29.47725887,238.74,238.65,29.47725887]
[1733414041410,29.47725887,238.72,238.63,29.47725887]
[1733414041606,29.47725887,238.72,238.6,20.0]
[1733414041607,29.47725887,238.68,238.6,29.47725887]
[1733414042115,29.47725887,238.73,238.64,29.47725887]
[1733414042292,29.47725887,238.71,238.64,29.47725887]
[1733414042496,29.47725887,238.71,238.62,29.47725887]
[1733414043509,29.47725887,238.65,238.58,29.47725887]
[1733414044899,29.47725887,238.67,238.6,29.47725887]
[1733414045112,29.47725887,238.69,238.6,29.47725887]
[1733414045722,29.47725887,238.67,238.6,29.47725887]
[1733414045912,29.47725887,238.67,238.58,29.47725887]
[1733414046818,29.47725887,238.69,238.62,29.47725887]
[1733414047030,137.8,238.71,238.52,1.69129467]
[1733414047031,29.47725887,238.67,238.58,29.47725887]
[1733414047205,29.47725887,238.65,238.56,29.47725887]
[1733414047795,29.47725887,238.67,238.58,29.47725887]
[1733414048002,18.19790038,238.69,238.61,18.19790038]
[1733414048601,18.19790038,238.73,238.66,18.19790038]
[1733414049104,18.19790038,238.73,238.64,18.19790038]
[1733414050133,18.19790038,238.71,238.64,18.19790038]
[1733414051010,18.19790038,238.73,238.64,18.19790038]
[1733414051221,18.19790038,238.77,238.7,18.19790038]
[1733414051730,1.603,238.8,238.62,10.4766]
[1733414051731,18.19790038,238.75,238.66,18.19790038]
[1733414051935,18.19790038,238.75,238.67,312.0]
[1733414052521,18.19790038,238.81,238.72,18.19790038]
[1733414052923,18.18107395,238.8,238.66,20.0]
[1733414053241,18.18107395,238.8,238.66,30.4748]
[1733414053605,18.18107395,238.78,238.66,30.4748]
[1733414054118,18.18107395,238.76,238.66,20.0]
[1733414054317,18.18107395,238.74,238.62,32.13723486]
[1733414054538,18.18107395,238.74,238.62,30.4767]
[1733414054721,18.18107395,238.76,238.62,30.4767]
[1733414055335,18.18107395,238.8,238.67,20.0]
[1733414055544,18.18107395,238.84,238.71,312.0]
[1733414055832,18.18107395,238.84,238.74,20.0]
[1733414056038,18.18107395,238.84,238.67,20.0]
[1733414056039,18.18107395,238.84,238.68,24.027864]
[1733414056217,18.18107395,238.86,238.7,0.12549]
[1733414056535,18.18107395,238.86,238.75,20.0]
[1733414057100,2.3153,238.88,238.75,20.0]
[1733414057339,2.3153,238.88,238.79,20.0]
[1733414058737,18.18107395,238.9,238.79,20.0]
[1733414059038,18.18107395,238.9,238.81,312.0]
[1733414059436,18.18107395,238.88,238.81,312.0]
[1733414059621,18.18107395,238.9,238.81,312.0]
[1733414061447,18.18107395,238.9,238.79,20.0]
[1733414061824,18.18107395,238.92,238.79,20.0]
[1733414062031,2.3136,238.95,238.83,20.0]
[1733414062346,18.45980685,238.98,238.83,20.0]
[1733414062527,0.2787329,238.98,238.91,20.0]
[1733414063125,0.2787329,238.98,238.87,20.0]
[1733414064050,0.2787329,238.98,238.91,20.0]
[1733414064544,0.2787329,238.98,238.94,312.0]
[1733414065323,0.2787329,238.98,238.97,20.0]
[1733414065564,0.2787329,238.98,238.91,20.0]
[1733414066061,0.2787329,238.98,238.95,20.0]
[1733414066645,0.2787329,238.98,238.88,10.4654]
[1733414066850,18.18107395,238.92,238.82,1.66827163]
[1733414067023,18.18107395,238.9,238.79,10.4692]
[1733414067223,18.18107395,238.87,238.76,6.057]
[1733414067424,18.18107395,238.87,238.73,1.64613012]
[1733414067630,18.18107395,238.87,238.68,6.2192]
[1733414067631,18.18107395,238.85,238.71,0.62813634]
[1733414067849,18.18107395,238.83,238.68,8.50820783]
[1733414068050,18.18107395,238.87,238.71,10.4728]
[1733414068247,18.18107395,238.87,238.73,0.12549]
[1733414068425,2.2523,238.88,238.75,312.0]
[1733414069051,2.2523,238.88,238.75,0.12549]
[1733414069548,18.18107395,238.85,238.69,26.1746795]
[1733414069852,18.18107395,238.85,238.7,24.40505917]
[1733414070623,18.18107395,238.87,238.71,10.59829]
[1733414070832,18.18107395,238.83,238.67,10.4746]
[1733414071031,18.18107395,238.79,238.67,0.62829028]
[1733414071231,12.718,238.88,238.59,0.62829028]
[1733414071232,18.18107395,238.74,238.59,0.62829028]
[1733414072035,29.55535966,238.76,238.63,312.0]
[1733414072358,29.55535966,238.74,238.63,322.4763]
[1733414072650,29.55535966,238.74,238.63,10.4763]
[1733414072952,29.55535966,238.74,238.56,6.4]
[1733414072953,29.55535966,238.72,238.59,10.4781]
[1733414073557,29.55535966,238.7,238.56,6.4]
[1733414073732,29.55535966,238.7,238.54,10.48]
[1733414073936,29.55535966,238.68,238.54,10.48]
[1733414074442,6.5204,238.74,238.54,10.48]
[1733414074443,29.55535966,238.64,238.54,10.48]
[1733414075227,29.55535966,238.66,238.54,10.48]
[1733414075431,29.55535966,238.66,238.54,322.48]
[1733414075853,29.55535966,238.66,238.57,20.0]
[1733414076354,29.55535966,238.7,238.53,20.0]
[1733414076558,29.55535966,238.68,238.54,43.776884]
[1733414076763,29.55535966,238.68,238.55,0.12549]
[1733414077266,2.3399,238.72,238.54,20.0]
[1733414077267,29.55535966,238.66,238.54,20.0]
[1733414077642,29.55535966,238.66,238.52,0.12549]
[1733414078057,29.55535966,238.66,238.52,0.25098]
[1733414079158,29.55535966,238.68,238.57,312.0]
[1733414079362,140.1399,238.72,238.57,312.0]
[1733414079363,29.55535966,238.7,238.6,20.0]
[1733414080357,29.55535966,238.68,238.57,0.12549]
[1733414080559,29.55535966,238.68,238.57,0.25098]
[1733414080766,29.55535966,238.68,238.56,20.0]
[1733414081133,29.55535966,238.66,238.56,20.0]
[1733414081860,146.6603,238.83,238.58,0.25098]
[1733414082067,146.6603,238.83,238.66,0.12549]
[1733414082068,29.55535966,238.79,238.66,0.12549]
[1733414082233,29.55535966,238.81,238.69,20.0]
[1733414082432,29.55535966,238.81,238.66,0.25098]
[1733414082639,29.55535966,238.85,238.7,0.25098]
[1733414083266,29.55535966,238.89,238.7,44.65605107]
[1733414083437,8.9162,238.91,238.7,44.65605107]
[1733414083438,29.55535966,238.87,238.7,44.65605107]
[1733414083759,29.55535966,238.85,238.74,20.0]
[1733414083949,29.55535966,238.87,238.74,20.0]
[1733414084153,29.55535966,238.85,238.74,20.0]
[1733414084541,137.8,238.9,238.74,20.0]
[1733414084542,29.55535966,238.87,238.74,20.0]
[1733414084731,29.55535966,238.89,238.74,20.0]
[1733414085363,29.55535966,238.87,238.74,20.0]
[1733414085539,29.55535966,238.89,238.76,312.0]
[1733414085992,29.55535966,238.89,238.74,20.0]
[1733414086151,29.55535966,238.87,238.74,20.0]
[1733414086556,29.55535966,238.87,238.77,20.0]
[1733414086737,29.55535966,238.85,238.74,10.4713]
[1733414087346,29.55535966,238.87,238.74,10.4713]
[1733414088150,29.55535966,238.85,238.7,1.67944673]
[1733414088450,29.55535966,238.85,238.7,0.12549]
[1733414088855,29.55535966,238.83,238.7,0.12549]
[1733414089167,29.55535966,238.83,238.72,312.0]
[1733414090460,137.8,238.87,238.72,312.0]
[1733414090461,29.55535966,238.85,238.72,312.0]
[1733414090645,29.55535966,238.85,238.71,10.4729]
[1733414090850,29.55535966,238.83,238.71,10.4729]
[1733414091760,29.55535966,238.83,238.7,20.0]
[1733414091958,18.1798823,238.82,238.7,20.0]
[1733414092751,18.1798823,238.82,238.67,18.14393916]
[1733414093081,18.1798823,238.8,238.67,18.14393916]
[1733414093381,137.8,238.85,238.67,18.14393916]
[1733414093382,18.1798823,238.82,238.67,18.14393916]
[1733414093672,18.1798823,238.82,238.7,312.0]
[1733414094343,18.1798823,238.82,238.73,20.0]
[1733414094546,18.1798823,238.86,238.73,20.0]
[1733414095175,18.1798823,238.88,238.74,0.12549]
[1733414095346,18.1798823,238.88,238.73,20.0]
[1733414095545,137.8,238.95,238.73,20.0]
[1733414095546,18.1798823,238.86,238.73,20.0]
[1733414096261,18.1798823,238.82,238.73,20.0]
[1733414096470,10.4646,238.9,238.73,20.0]
[1733414096471,18.1798823,238.8,238.73,20.0]
[1733414096671,18.1798823,238.8,238.67,6.0012]
[1733414096874,18.1798823,238.8,238.7,20.0]
[1733414097464,18.1798823,238.8,238.71,20.0]
[1733414098374,18.1798823,238.82,238.71,20.0]
[1733414100950,18.1798823,238.82,238.71,332.0]
[1733414101295,18.1798823,238.8,238.71,332.0]
[1733414101585,18.1798823,238.8,238.71,20.0]
[1733414101951,18.1798823,238.76,238.7,20.0]
[1733414102154,18.1798823,238.76,238.67,20.0]
[1733414102478,155.9798823,238.82,238.67,20.0]
[1733414103270,18.1798823,238.8,238.71,20.0]
[1733414103659,18.1798823,238.86,238.71,20.0]
[1733414103860,18.1798823,238.89,238.72,0.75372777]
[1733414104071,18.1798823,238.87,238.71,20.0]
[1733414104255,18.1798823,238.79,238.68,10.4742]
[1733414104459,18.1798823,238.79,238.72,312.0]
[1733414105178,19.3806,238.91,238.58,20.9572]
[1733414105179,18.1798823,238.73,238.62,10.4769]
[1733414105561,18.1798823,238.75,238.63,0.12549]
[1733414105769,23.776884,238.77,238.63,0.12549]
[1733414105979,18.1798823,238.78,238.63,0.12549]
[1733414106155,23.776884,238.79,238.63,0.25098]
[1733414106470,18.1798823,238.78,238.65,20.0]
[1733414106661,23.776884,238.75,238.62,10.4769]
[1733414106869,18.1798823,238.74,238.62,10.4769]
[1733414107062,18.1798823,238.76,238.62,10.4769]
[1733414107852,23.776884,238.75,238.62,10.4769]
[1733414108053,23.776884,238.75,238.65,312.0]
[1733414108281,18.1798823,238.74,238.65,312.0]
[1733414108505,23.776884,238.73,238.61,8.29167038]
[1733414108701,23.776884,238.71,238.61,8.29167038]
[1733414109564,23.776884,238.71,238.58,10.4784]
[1733414109761,23.776884,238.67,238.55,6.0502]
[1733414110357,23.776884,238.67,238.55,7.7346124]
[1733414110982,23.776884,238.67,238.49,10.4823]
[1733414110983,18.1798823,238.63,238.49,10.4823]
[1733414111325,18.1798823,238.59,238.45,16.5594]
[1733414111455,23.776884,238.58,238.49,312.0]
[1733414111963,23.776884,238.56,238.45,1.6765184]
[1733414112164,23.776884,238.56,238.41,10.4859]
[1733414112559,18.1798823,238.53,238.41,10.4859]
[1733414112758,23.776884,238.5,238.38,1.90858399]
[1733414112969,23.776884,238.48,238.38,0.221727]
[1733414113597,42.00752685,238.48,238.41,18.23064285]
[1733414114162,23.776884,238.48,238.41,18.23064285]
[1733414114363,23.776884,238.49,238.41,18.23064285]
[1733414115261,10.4791,238.57,238.38,312.221727]
[1733414115262,18.23064285,238.54,238.47,18.23064285]
[1733414115463,18.23064285,238.59,238.52,18.23064285]
[1733414115786,18.23064285,238.55,238.46,18.23064285]
[1733414115964,18.23064285,238.53,238.46,18.23064285]
[1733414116161,18.23064285,238.57,238.39,0.12549]
[1733414116494,18.23064285,238.57,238.5,18.23064285]
[1733414116662,18.23064285,238.57,238.48,18.23064285]
[1733414116867,18.23064285,238.57,238.39,0.25098]
[1733414116868,23.776884,238.56,238.5,18.23064285]
[1733414118369,18.23064285,238.57,238.5,330.23064285]
[1733414118564,20.49044285,238.61,238.53,18.23064285]
[1733414118813,18.23064285,238.63,238.55,18.23064285]
[1733414119496,18.23064285,238.59,238.51,18.23064285]
[1733414119907,18.23064285,238.57,238.49,18.23064285]
[1733414120080,38.23064285,238.63,238.55,18.23064285]
[1733414120275,18.23064285,238.59,238.51,18.23064285]
[1733414120475,18.23064285,238.57,238.49,18.23064285]
[1733414121300,23.776884,238.56,238.51,18.23064285]
[1733414121885,23.776884,238.58,238.53,18.23064285]
[1733414122190,18.23064285,238.61,238.51,312.0]
[1733414122191,2.2078,238.68,238.57,18.23064285]
[1733414122517,18.23064285,238.72,238.63,18.23064285]
[1733414123089,2.2927,238.82,238.7,18.23064285]
[1733414123291,0.52592493,238.84,238.77,18.23064285]
[1733414123493,0.52592493,238.84,238.81,18.23064285]
[1733414123691,0.52592493,238.84,238.79,18.23064285]
[1733414123895,18.75656778,238.84,238.75,18.23064285]
[1733414124196,18.75656778,238.84,238.72,6.2953]
[1733414124197,0.52592493,238.84,238.81,18.23064285]
[1733414124404,0.52592493,238.84,238.83,18.23064285]
[1733414125993,0.52592493,238.84,238.81,18.23064285]
[1733414126190,0.52592493,238.84,238.83,18.23064285]
[1733414128785,0.52592493,238.84,238.83,330.23064285]
[1733414129812,0.52592493,238.84,238.83,18.35613285]
[1733414130396,0.52592493,238.84,238.83,28.94922285]
[1733414130397,2.493e-05,238.84,238.83,28.94922285]
[1733414130721,18.23064285,239.01,238.86,20.0]
[1733414130920,18.23064285,239.01,238.93,18.23064285]
[1733414131294,2.2053,239.03,238.95,18.23064285]
[1733414131508,1723.32917219,239.06,238.95,18.23064285]
[1733414131700,18.23064285,239.05,238.97,18.23064285]
[1733414132218,18.23064285,239.03,238.95,18.23064285]
[1733414132817,18.23064285,239.03,238.95,330.23064285]
[1733414133017,18.23064285,238.96,238.88,18.23064285]
[1733414134229,18.23064285,238.94,238.88,18.23064285]
[1733414134820,18.23064285,238.96,238.88,18.23064285]
[1733414135627,20.39434285,239.08,238.95,18.23064285]
[1733414135799,20.39434285,239.08,238.97,18.23064285]
[1733414136123,18.23064285,239.12,238.97,330.35613285]
[1733414136325,144.3577,239.15,238.97,330.23064285]
[1733414136326,18.23064285,239.04,238.97,330.23064285]
[1733414136530,18.23064285,239.02,238.95,18.23064285]
[1733414137327,18.23064285,239.02,238.93,18.23064285]
[1733414137502,18.23064285,239.02,238.95,18.23064285]
[1733414137834,18.23064285,239.04,238.97,18.23064285]
[1733414137997,18.23064285,239.04,238.95,18.23064285]
[1733414138197,18.23064285,239.02,238.93,18.23064285]
[1733414138613,137.8,239.09,238.89,10.59009]
[1733414138614,18.23064285,239.04,238.95,18.23064285]
[1733414139532,18.23064285,239.13,238.97,18.23064285]
[1733414139697,137.8,239.14,238.97,18.23064285]
[1733414139698,18.23064285,239.11,238.97,23.98346597]
[1733414140103,18.23064285,239.12,238.97,23.98346597]
[1733414140440,1.66954947,239.25,238.97,23.98346597]
[1733414140441,1592.37296423,239.06,239.05,44.616774]
[1733414140601,1335.37916073,239.06,239.05,92.65060787]
[1733414140802,1316.68996073,239.06,239.05,51.65008102]
[1733414141226,1316.68996073,239.06,239.05,30.51759102]
[1733414141426,1310.4261281,239.06,239.05,30.29909012]
[1733414141612,1310.4261281,239.06,239.05,40.75709012]
[1733414142409,1268.38706454,239.06,239.05,64.53397412]
[1733414142633,1233.68997173,239.06,239.05,64.53397412]
[1733414142832,1204.05007173,239.06,239.05,46.30333127]
[1733414143033,1204.05007173,239.06,239.05,334.52644727]
[1733414143337,1031.05703839,239.06,239.05,358.30333127]
[1733414143634,1011.16323839,239.06,239.05,358.30333127]
[1733414143846,981.12173839,239.06,239.05,358.30333127]
[1733414144022,885.0608062,239.06,239.05,358.30333127]
[1733414144815,885.0608062,239.06,239.05,334.52644727]
[1733414145026,885.0608062,239.06,239.01,10.4597]
[1733414145343,885.0608062,239.06,239.05,18.35613285]
[1733414145640,872.1706159,239.06,239.05,29.5122508]
[1733414145935,865.90704483,239.06,239.05,29.5122508]
[1733414146236,865.90704483,239.06,239.05,29.6377408]
[1733414146444,716.58153181,239.06,239.05,53.4146248]
[1733414146749,649.96130836,239.06,239.05,53.4146248]
[1733414146919,532.3228507,239.06,239.05,63.8726248]
[1733414147113,450.35226053,239.06,239.05,63.8726248]
[1733414147317,342.53057524,239.06,239.05,63.8726248]
[1733414147520,295.38027524,239.06,239.05,45.64198195]
[1733414147723,189.67428995,239.06,239.05,45.64198195]
[1733414148046,189.67428995,239.06,239.05,357.64198195]
[1733414148047,168.92758995,239.06,239.05,357.64198195]
[1733414148344,2.1759,239.37,239.05,357.64198195]
[1733414148345,5.99e-05,239.22,239.11,0.12549]
[1733414148638,18.23064285,239.34,239.21,18.23064285]
[1733414148845,18.23064285,239.34,239.16,18.23064285]
[1733414148846,18.23064285,239.32,239.24,18.23064285]
[1733414149222,18.23064285,239.34,239.24,18.23064285]
[1733414149430,18.23064285,239.36,239.26,18.23064285]
[1733414149740,18.23064285,239.34,239.26,18.23064285]
[1733414150319,18.23064285,239.36,239.28,18.23064285]
[1733414150722,18.23064285,239.34,239.24,18.23064285]
[1733414151553,18.23064285,239.27,239.19,27.76156804]
[1733414151727,6.6527,239.39,239.26,330.23064285]
[1733414151728,18.23064285,239.39,239.26,330.23064285]
[1733414152044,18.23064285,239.39,239.3,18.23064285]
[1733414152341,18.23064285,239.37,239.28,18.23064285]
[1733414152534,6.8294599,239.46,239.27,11.36630572]
[1733414152535,18.23064285,239.39,239.3,18.23064285]
[1733414152758,18.23064285,239.39,239.27,10.448]
[1733414152759,0.5004599,239.46,239.37,18.23064285]
[1733414152913,18.73110275,239.46,239.38,5.77323311]
[1733414153114,18.23064285,239.42,239.38,5.77323311]
[1733414153428,0.5004599,239.46,239.41,18.23064285]
[1733414155144,0.5004599,239.46,239.39,18.23064285]
[1733414155446,18.23064285,239.42,239.35,18.23064285]
[1733414155631,5.99e-05,239.46,239.44,20.0]
[1733414155840,18.23064285,239.7,239.46,0.12549]
[1733414156148,18.23064285,239.66,239.56,18.23064285]
[1733414156523,18.23064285,239.64,239.56,18.23064285]
[1733414156728,2.1972,239.69,239.54,18.23064285]
[1733414156927,18.23064285,239.67,239.56,18.23064285]
[1733414157157,18.23064285,239.65,239.56,18.23064285]
[1733414157357,2.1972,239.69,239.55,6.29206008]
[1733414157358,18.23064285,239.63,239.55,6.29206008]
[1733414157530,18.23064285,239.63,239.54,25.03225541]
[1733414157847,18.23064285,239.59,239.5,18.23064285]
[1733414158435,23.776884,239.6,239.5,18.23064285]
[1733414158629,18.23064285,239.59,239.5,18.23064285]
[1733414158829,23.776884,239.58,239.5,18.23064285]
[1733414159058,137.8,239.67,239.5,18.23064285]
[1733414159059,10.424,239.84,239.59,20.0]
[1733414159235,18.23064285,239.7,239.6,24.54114126]
[1733414159446,18.23064285,239.66,239.56,18.23064285]
[1733414159748,18.23064285,239.68,239.58,18.23064285]
[1733414161115,18.23064285,239.72,239.62,18.23064285]
[1733414161272,18.23064285,239.7,239.6,18.23064285]
[1733414161559,10.4268,239.77,239.6,18.23064285]
[1733414161727,18.23064285,239.7,239.6,18.23064285]
[1733414162050,18.23064285,239.66,239.59,6.1768873]
[1733414162233,18.23064285,239.64,239.54,18.23064285]
[1733414162425,18.23064285,239.62,239.52,18.23064285]
[1733414162625,18.23064285,239.58,239.48,18.23064285]
[1733414162941,18.23064285,239.54,239.44,18.23064285]
[1733414163146,18.23064285,239.54,239.42,6.18195818]
[1733414163147,18.23064285,239.45,239.42,6.18195818]
[1733414163327,23.776884,239.42,239.31,18.23064285]
[1733414163527,18.23064285,239.39,239.29,18.23064285]
[1733414163750,23.776884,239.38,239.29,18.23064285]
[1733414164166,23.776884,239.38,239.31,29.40238338]
[1733414164745,23.776884,239.38,239.28,29.40238338]
[1733414165154,29.40238338,239.43,239.37,20.0]
[1733414165362,31.55218338,239.46,239.36,29.40238338]
[1733414165532,2.1498,239.46,239.42,29.40238338]
[1733414165860,29.40238338,239.51,239.42,29.40238338]
[1733414166072,35.90798338,239.53,239.44,29.40238338]
[1733414166259,35.90798338,239.53,239.48,29.40238338]
[1733414166260,6.5056,239.53,239.48,29.40238338]
[1733414166439,2.1302,239.56,239.5,29.40238338]
[1733414166635,2.1302,239.56,239.52,29.40238338]
[1733414166833,29.40238338,239.53,239.44,34.61879544]
[1733414167032,29.40238338,239.49,239.44,5.21641206]
[1733414167242,29.40238338,239.49,239.36,10.4441]
[1733414167243,29.40238338,239.47,239.38,29.40238338]
[1733414167454,29.40238338,239.45,239.36,29.40238338]
[1733414167662,29.40238338,239.47,239.38,29.40238338]
[1733414167857,29.40238338,239.45,239.36,29.40238338]
[1733414168659,29.40238338,239.47,239.38,29.40238338]
[1733414168861,29.40238338,239.45,239.36,29.40238338]
[1733414169363,2.1302,239.56,239.44,29.40238338]
[1733414169545,29.40238338,239.55,239.46,29.40238338]
[1733414170242,29.40238338,239.51,239.4,20.0]
[1733414170445,29.40238338,239.55,239.47,29.40238338]
[1733414170763,29.40238338,239.55,239.45,29.40238338]
[1733414170961,2.1302,239.56,239.5,29.40238338]
[1733414171140,2.1302,239.56,239.48,29.40238338]
[1733414171462,35.56218338,239.62,239.54,29.40238338]
[1733414171666,29.40238338,239.6,239.52,29.40238338]
[1733414171859,29.40238338,239.6,239.54,312.0]
[1733414172058,35.56218338,239.62,239.54,312.0]
[1733414172447,31.66788338,239.66,239.56,29.40238338]
[1733414172658,2.2655,239.66,239.58,29.40238338]
[1733414173171,31.66788338,239.66,239.56,29.40238338]
[1733414173465,29.40238338,239.58,239.46,29.40238338]
[1733414173666,29.40238338,239.54,239.46,29.40238338]
[1733414173874,29.40238338,239.52,239.42,29.40238338]
[1733414174774,29.40238338,239.54,239.44,29.40238338]
[1733414174955,29.40238338,239.54,239.47,20.0]
[1733414175151,29.40238338,239.54,239.44,29.40238338]
[1733414175549,29.40238338,239.54,239.44,341.40238338]
[1733414175744,29.40238338,239.52,239.42,29.40238338]
[1733414175941,29.40238338,239.48,239.38,29.40238338]
[1733414176638,20.8681,239.6,239.4,29.40238338]
[1733414176857,29.40238338,239.58,239.47,29.40238338]
[1733414177145,29.40238338,239.56,239.47,29.40238338]
[1733414177464,29.40238338,239.56,239.45,29.40238338]
[1733414178175,29.40238338,239.6,239.49,29.40238338]
[1733414178748,29.40238338,239.6,239.51,29.40238338]
[1733414179046,29.40238338,239.58,239.49,341.40238338]
[1733414179242,29.40238338,239.56,239.45,29.40238338]
[1733414179473,29.40238338,239.54,239.43,29.40238338]
[1733414179663,29.40238338,239.52,239.43,29.40238338]
[1733414179865,29.40238338,239.5,239.41,29.40238338]
[1733414180074,29.40238338,239.5,239.34,5.18729206]
[1733414180075,29.40238338,239.48,239.39,29.40238338]
[1733414180450,29.40238338,239.5,239.39,29.40238338]
[1733414180646,29.40238338,239.5,239.34,5.18729206]
[1733414180647,11.2421,239.51,239.43,29.40238338]
[1733414181156,38.38448338,239.58,239.47,29.40238338]
[1733414181383,8.9821,239.58,239.51,29.40238338]
[1733414181575,8.9821,239.58,239.42,23.776884]
[1733414181576,8.9821,239.58,239.53,29.40238338]
[1733414181754,2.26,239.6,239.53,29.40238338]
[1733414182271,2.26,239.6,239.54,312.0]
[1733414182778,2.26,239.6,239.55,29.40238338]
[1733414183149,2.26,239.6,239.57,29.40238338]
[1733414183355,2.26,239.6,239.55,29.40238338]
[1733414185684,2.26,239.6,239.53,29.40238338]
[1733414185972,0.5004599,239.71,239.59,18.04468322]
[1733414186171,18.54514312,239.71,239.62,20.0]
[1733414186381,18.04468322,239.67,239.57,18.04468322]
[1733414187061,18.0526877,239.66,239.56,18.0526877]
[1733414187466,18.0526877,239.68,239.58,18.0526877]
[1733414188074,18.0526877,239.66,239.56,18.0526877]
[1733414189477,18.0526877,239.64,239.56,312.0]
[1733414189660,0.25098,239.7,239.44,0.75157906]
[1733414189661,18.0526877,239.62,239.52,18.0526877]
[1733414190155,10.4307,239.68,239.44,16.35156975]
[1733414190156,18.0526877,239.6,239.5,18.0526877]
[1733414190782,18.0526877,239.62,239.52,18.0526877]
[1733414191279,18.0526877,239.6,239.5,18.0526877]
[1733414191582,18.0526877,239.54,239.44,18.0526877]
[1733414191797,18.0526877,239.5,239.4,18.0526877]
[1733414192082,29.38664373,239.45,239.36,29.38664373]
[1733414192878,29.38664373,239.41,239.32,29.38664373]
[1733414194359,29.38664373,239.39,239.3,49.38664373]
[1733414194677,29.38664373,239.56,239.41,20.0]
[1733414194896,29.38664373,239.6,239.49,29.38664373]